[Event "44th Chess Olympiad Open 2022"]
[Site "Chennai"]
[Date "2022.08.01"]
[Round "4.42"]
[White "Gong, Qianyun"]
[Black "Sakhawaty, Sepehr"]
[Result "0-1"]
[WhiteElo "2275"]
[BlackElo "1809"]
[Annotator "NA RC"]
[PlyCount "86"]
[EventDate "2022.??.??"]
[TimeControl "60"]

1. e4 {[%emt 0:00:03]} c5 {[%emt 0:00:03]} 2. Nc3 {[%emt 0:00:05]} d6 {[%emt 0:
00:00]} 3. f4 {[%emt 0:00:12]} Nc6 {[%emt 0:00:48]} 4. Nf3 {[%emt 0:01:10]} g6
{[%emt 0:01:57]} 5. Bc4 {[%emt 0:00:20]} Bg7 {[%emt 0:00:17]} 6. O-O {[%emt 0:
00:00]} e6 {[%emt 0:02:57]} 7. d4 {[%emt 0:01:33]} cxd4 {[%emt 0:13:46]} 8. Nb5
{[%emt 0:00:07]} Nge7 {[%emt 0:03:44]} 9. Bb3 {[%emt 0:00:07]} O-O {[%emt 0:00:
00]} 10. Nbxd4 {[%emt 0:00:05]} d5 {[%emt 0:04:50]} 11. e5 {[%emt 0:01:39]} a6
{[%emt 0:01:56]} 12. c3 {[%emt 0:04:22]} Bd7 {[%emt 0:02:33]} 13. Be3 {[%emt 0:
00:00]} Na5 {[%emt 0:03:27]} 14. Bc2 {[%emt 0:10:28]} Rc8 {[%emt 0:00:43]} 15.
Qe1 {[%emt 0:05:14]} Nc4 {[%emt 0:03:34]} 16. Bc1 {[%emt 0:00:09]} b5 {[%emt 0:
00:00]} 17. Kh1 {[%emt 0:01:17]} Nc6 {[%emt 0:08:44]} 18. b3 {[%emt 0:06:16]}
N4a5 {[%emt 0:01:59]} 19. Ba3 {[%emt 0:01:19]} Nxd4 {[%emt 0:00:47]} 20. Nxd4 {
[%emt 0:00:13]} Re8 {[%emt 0:00:17]} 21. Rd1 {[%emt 0:05:03]} Nb7 {[%emt 0:00:
00]} 22. Rf3 {[%emt 0:03:37]} Qa5 {[%emt 0:03:43]} 23. Bb4 {[%emt 0:01:50]} Qb6
{[%emt 0:00:01]} 24. Rh3 {[%emt 0:02:29]} a5 {[%emt 0:03:50]} 25. Ba3 {[%emt 0:
00:00]} Nc5 {[%emt 0:04:05]} 26. Qh4 {[%emt 0:02:44]} h6 {[%emt 0:02:09]} 27.
Qe1 {[%emt 0:00:38]} Rc7 {[%emt 0:03:55]} 28. Rg3 {[%emt 0:03:11]} Rec8 {
[%emt 0:04:09]} 29. h3 {[%emt 0:00:33]} Rb7 {[%emt 0:02:14]} 30. Bb2 {[%emt 0:
00:00]} b4 {[%emt 0:00:50]} 31. Bb1 {[%emt 0:16:09]} Rbc7 {[%emt 0:03:12]} 32.
Re3 {[%emt 0:04:14]} Nb7 {[%emt 0:04:07]} 33. cxb4 {[%emt 0:06:09]} axb4 {
[%emt 0:00:08]} 34. g4 {[%emt 0:00:13]} Nc5 {[%emt 0:01:25]} 35. f5 {[%emt 0:
00:00]} exf5 {[%emt 0:00:54]} 36. gxf5 {[%emt 0:00:19]} Ne4 {[%emt 0:01:02]}
37. Bxe4 {[%emt 0:04:27]} dxe4 {[%emt 0:00:01]} 38. Qh4 {[%emt 0:00:50]} Bxe5 {
[%emt 0:01:38]} 39. fxg6 {[%emt 0:00:16]} fxg6 {[%emt 0:00:59]} 40. Qxh6 {
[%emt 0:00:50]} Qf6 {[%emt 0:01:10]} 41. Rg1 {[%emt 0:11:02]} Be8 {[%emt 0:00:
00]} 42. Rxe4 {[%emt 0:02:03]} Rc2 {[%emt 0:11:08]} 43. Re2 {[%emt 0:14:18]}
Rxe2 {[%emt 0:00:52]} 0-1

[Event "44th Chess Olympiad Open 2022"]
[Site "Chennai"]
[Date "2022.08.01"]
[Round "4.42"]
[White "Amini, Habibullah"]
[Black "Siddharth, Jagadeesh"]
[Result "0-1"]
[WhiteElo "2035"]
[BlackElo "2426"]
[Annotator "TA"]
[PlyCount "106"]
[EventDate "2022.??.??"]
[TimeControl "60"]

{[%evp 9,106,10,38,34,38,31,27,28,30,0,2,13,8,8,19,14,10,29,28,-31,21,0,0,-34,
-38,-29,20,17,20,0,50,57,59,77,125,129,108,-97,-102,-129,-138,-121,-130,-311,
-137,-137,-134,-122,-110,-94,-107,-123,-127,-131,-135,-150,-143,-197,-213,-202,
-186,-186,-179,-192,-146,-183,-197,-235,-131,-287,-268,-618,-552,-606,-610,
-598,-586,-567,-561,-865,-806,-1017,-1007,-999,-941,-999,-966,-29981,-29982,
-29982,-29983,-29983,-29982,-29988,-29982,-29982,-29983,-29987,-29988]} 1. d4 {
[%emt 0:00:29]} d5 {[%emt 0:00:26]} 2. Bf4 {[%emt 0:00:00]} c5 {[%emt 0:00:26]}
3. e3 {[%emt 0:01:01]} Nc6 {[%emt 0:00:23]} 4. c3 {[%emt 0:00:17]} Qb6 {
[%emt 0:00:20]} 5. Qb3 {[%emt 0:03:57]} c4 {[%emt 0:00:22]} 6. Qc2 {[%emt 0:00:
00] D00:1 d4 d5: Unusual lines.} e5 $1 {[%emt 0:00:33] is now more promising
than 6...Bf5.} 7. dxe5 {[%emt 0:02:49]} Bf5 {[%emt 0:00:21]} 8. Qc1 {[%emt 0:
02:28] White has an edge.} (8. Qxf5 $2 Qxb2 9. e6 fxe6 10. Qxe6+ Be7 $19) 8...
g5 {[%emt 0:00:17]} 9. Bg3 {[%emt 0:00:49]} (9. Bxg5 $5 {[%cal Rg1f3]} Nxe5 10.
Nf3 Nxf3+ 11. gxf3 $11) 9... h5 {[%emt 0:00:17]} 10. h3 {[%emt 0:00:00]} Bg7 {
[%emt 0:00:17]} 11. Nf3 {[%emt 0:06:31]} Nh6 {[%emt 0:00:13]} 12. Nbd2 {
[%emt 0:05:29]} h4 {[%emt 0:00:15]} 13. Bh2 {[%emt 0:00:23]} g4 {[%emt 0:00:00]
} 14. Nd4 {[%emt 0:10:33]} (14. Nxh4 $11 Be6 15. e4) 14... Bg6 {[%emt 0:00:00]}
(14... g3 $1 $15 15. fxg3 Bxe5) 15. hxg4 {[%emt 0:19:54]} Nxg4 {[%emt 0:01:36]
[#]} 16. Nxc6 $146 {[%emt 0:00:32]} ({Predecessor:} 16. N2f3 Ncxe5 17. Nxe5
Bxe5 18. Bxe5 Nxe5 19. Qd2 O-O-O 20. b3 Kb8 21. bxc4 dxc4 22. a4 {1-0 (64)
Kamsky,G (2685)-Vega Gutierrez,S (2395) chess24.com INT 2019}) 16... bxc6 {
[%emt 0:00:35]} 17. Nf3 {[%emt 0:01:11]} Bh6 {[%emt 0:12:24]} (17... Nxh2 {
should be considered.} 18. Rxh2 Be4) 18. Bg1 $11 {[%emt 0:04:23]} Be4 {[%emt 0:
11:05]} 19. Rxh4 {[%emt 0:04:09]} Bxf3 {[%emt 0:03:21] Remove Defender} 20.
gxf3 {[%emt 0:00:02]} Nxe5 {[%emt 0:00:10]} 21. Be2 {[%emt 0:00:00]} O-O-O {
[%emt 0:01:02]} (21... Qd8 $142 22. Rh3 Qb6) 22. Qc2 $16 {[%emt 0:00:00]} Rdg8
{[%emt 0:06:10]} 23. Qf5+ $2 {[%emt 0:13:02]} (23. Bh2 Bxe3 $1 24. Rxh8 Rxh8
25. Bxe5 Bxf2+ 26. Kf1 Rh1+ 27. Kg2 Rxa1 $17) (23. Kf1 $1 $16 {is necessary to
keep the advantage.}) 23... Nd7 $17 {[%emt 0:00:24] Black is more active.} 24.
Kf1 {[%emt 0:04:11] b3 is the strong threat.} (24. O-O-O $2 Bxe3+ $1 25. Kb1
Rxh4 $19) 24... Qxb2 {[%emt 0:05:28]} 25. Re1 {[%emt 0:00:02][%cal Ye2c4]} ({
Of course not} 25. Rb1 Rxg1+ $1 26. Kxg1 Qxe2 27. Qxf7 Qc2) 25... Qxc3 {
[%emt 0:01:11][%cal Yg8g1]} 26. Bh2 {[%emt 0:00:13] [#]} (26. Rg4 $17) 26...
Qf6 {[%emt 0:07:34] The board is on fire.} (26... Bxe3 $1 $19 27. Qxf7 Bb6) 27.
Qxf6 {[%emt 0:00:00]} Nxf6 {[%emt 0:00:04]} 28. Be5 {[%emt 0:00:11]} Bg5 {
[%emt 0:00:28]} 29. Rxh8 {[%emt 0:00:13]} Rxh8 {[%emt 0:00:01]} 30. Kg2 {
[%emt 0:00:16] Against Rh1} Rg8 {[%emt 0:01:10] White must now prevent ...Bf4+.
} 31. Kf1 {[%emt 0:00:27]} Nd7 {[%emt 0:00:09]} 32. Bh2 {[%emt 0:00:16]} Bd8 {
[%emt 0:02:18]} 33. Bg3 {[%emt 0:02:33]} (33. Bd6 $17 {was worth a try.}) 33...
Bc7 $19 {[%emt 0:00:11]} 34. f4 {[%emt 0:00:20]} Nc5 {[%emt 0:00:22]} 35. Kg2 {
[%emt 0:00:11]} Ba5 {[%emt 0:04:19]} 36. Rh1 {[%emt 0:00:29]} Bd2 {[%emt 0:02:
55]} ({Better is} 36... Ne4 $19 37. Bd1 Bd2) 37. Bd1 {[%emt 0:02:02]} Ne4 {
[%emt 0:01:25][%cal Yd2e3] aiming for ...Bxe3!} 38. Rh3 {[%emt 0:02:28]} c5 {
[%emt 0:01:59]} ({Black should try} 38... Kc7 $19 {Strongly threatening ...Rb8.
} 39. Kf3 Kb6) 39. Rh5 $2 {[%emt 0:00:45]} (39. Bc2 $17) 39... Bxe3 $1 {
[%emt 0:00:55]} 40. Rxd5 $2 {[%emt 0:00:29]} (40. Bc2 Nf6 41. Rh6) 40... Bxf2 {
[%emt 0:01:04]} 41. Kf3 {[%emt 0:30:26]} Nc3 {[%emt 0:30:35]} ({Worse is} 41...
Bxg3 42. Kxe4 Bf2 43. Bh5 $17) ({And not} 41... Nxg3 42. Kxf2 Kb7 43. Rd7+ Kb6
44. Bf3 $17) 42. Bxf2 {[%emt 0:01:46]} Nxd5 {[%emt 0:00:07]} 43. Bxc5 {[%emt 0:
00:14] Endgame KRN-KB} Kc7 {[%emt 0:01:03]} 44. a4 {[%emt 0:00:48]} a5 {
[%emt 0:00:17]} 45. Bd4 {[%emt 0:00:43]} Kd6 {[%emt 0:01:30]} 46. Bc2 {[%emt 0:
00:49]} f6 {[%emt 0:00:37]} 47. Be4 {[%emt 0:00:44]} Rb8 {[%emt 0:00:13] And
now ...c3 would win.} 48. Bxd5 {[%emt 0:01:23]} Kxd5 {[%emt 0:00:08] Black
mates.} 49. Bxf6 {[%emt 0:00:06] KR-KB} c3 {[%emt 0:00:08][%cal Yc4c3,Yc3c2]}
50. Ke3 {[%emt 0:00:47]} Kc4 {[%emt 0:00:09]} 51. Ke2 {[%emt 0:00:41]} Rb2+ {
[%emt 0:00:13]} 52. Ke3 {[%emt 0:00:09]} Rh2 {[%emt 0:00:10]} 53. f5 {[%emt 0:
00:00]} c2 {[%emt 0:00:14] Weighted Error Value: White=0.47/Black=0.16 (very
precise)} 0-1

[Event "44th Chess Olympiad Open 2022"]
[Site "Chennai"]
[Date "2022.08.01"]
[Round "4.42"]
[White "Sulaiman, Ahmad Ashrafi"]
[Black "Wong, Zhenyong Jayden"]
[Result "0-1"]
[WhiteElo "1953"]
[BlackElo "2163"]
[Annotator "NA RC"]
[PlyCount "78"]
[EventDate "2022.??.??"]
[TimeControl "60"]

1. d4 {[%emt 0:00:06]} d5 {[%emt 0:00:06]} 2. Bf4 {[%emt 0:00:07]} c5 {[%emt 0:
00:00]} 3. e3 {[%emt 0:00:13]} Nc6 {[%emt 0:00:07]} 4. c3 {[%emt 0:00:35]} Qb6
{[%emt 0:00:13]} 5. Qc2 {[%emt 0:00:17]} Nf6 {[%emt 0:00:20]} 6. Nd2 {[%emt 0:
00:00]} Nh5 {[%emt 0:01:53]} 7. Bg5 {[%emt 0:02:22]} h6 {[%emt 0:02:59]} 8. Bh4
{[%emt 0:04:12]} g5 {[%emt 0:02:34]} 9. Be2 {[%emt 0:00:08]} cxd4 {[%emt 0:00:
00]} 10. Bxh5 {[%emt 0:04:16]} dxe3 {[%emt 0:02:59]} 11. Bg3 {[%emt 0:00:07]}
exd2+ {[%emt 0:00:09]} 12. Qxd2 {[%emt 0:00:10]} d4 {[%emt 0:10:59]} 13. Ne2 {
[%emt 0:00:11]} Bg7 {[%emt 0:00:50]} 14. O-O {[%emt 0:00:17]} O-O {[%emt 0:00:
00]} 15. Kh1 {[%emt 0:02:38]} e5 {[%emt 0:10:48]} 16. cxd4 {[%emt 0:06:12]}
Nxd4 {[%emt 0:00:25]} 17. h4 {[%emt 0:01:04]} g4 {[%emt 0:02:29]} 18. Nxd4 {
[%emt 0:05:20]} Qxd4 {[%emt 0:00:32]} 19. Qe2 {[%emt 0:01:05]} e4 {[%emt 0:00:
00]} 20. Rab1 {[%emt 0:07:27]} Be6 {[%emt 0:07:13]} 21. b3 {[%emt 0:04:36]} f5
{[%emt 0:04:33]} 22. Rfd1 {[%emt 0:00:07]} Qf6 {[%emt 0:01:28]} 23. Rd6 {
[%emt 0:03:52]} Rad8 {[%emt 0:04:53]} 24. Rbd1 {[%emt 0:03:28]} Rxd6 {[%emt 0:
00:00]} 25. Rxd6 {[%emt 0:04:37]} f4 {[%emt 0:02:38]} 26. Rxe6 {[%emt 0:06:15]}
Qxe6 {[%emt 0:00:06]} 27. Bxg4 {[%emt 0:00:13]} Qa6 {[%emt 0:05:18]} 28. Qxa6 {
[%emt 0:01:32]} bxa6 {[%emt 0:00:03]} 29. Bh2 {[%emt 0:00:07]} Bd4 {[%emt 0:00:
00]} 30. Bg1 {[%emt 0:02:26]} e3 {[%emt 0:01:13]} 31. fxe3 {[%emt 0:00:43]}
fxe3 {[%emt 0:00:21]} 32. Be6+ {[%emt 0:01:42]} Kh7 {[%emt 0:00:52]} 33. Bc4 {
[%emt 0:00:09]} Rc8 {[%emt 0:00:39]} 34. Bd3+ {[%emt 0:00:18]} Kg7 {[%emt 0:00:
00]} 35. Bc4 {[%emt 0:00:52]} Kg6 {[%emt 0:04:34]} 36. Bh2 {[%emt 0:01:49]} e2
{[%emt 0:03:07]} 37. Bg3 {[%emt 0:00:35]} Rxc4 {[%emt 0:02:08]} 38. bxc4 {
[%emt 0:02:39]} Bc3 {[%emt 0:00:13]} 39. Kh2 {[%emt 0:01:55]} Be5 {[%emt 0:00:
00]} 0-1

[Event "44th Chess Olympiad Open 2022"]
[Site "Chennai"]
[Date "2022.08.01"]
[Round "4.43"]
[White "Volodin, Aleksandr"]
[Black "Hsu, Hsuan-Ming"]
[Result "0-1"]
[WhiteElo "2454"]
[BlackElo "1900"]
[Annotator "TA"]
[PlyCount "108"]
[EventDate "2022.??.??"]
[TimeControl "60"]

{[%evp 14,108,39,12,16,-55,-13,-27,-30,-51,-14,-62,-49,-50,-16,-51,-3,-7,-3,
-13,-10,-8,-3,-8,9,-14,0,0,14,4,-8,-29,-12,-16,-27,-53,-45,-56,-52,-52,-47,-60,
-50,-80,-52,-72,-66,-70,-52,-137,-118,-146,-145,-137,-107,-106,-87,-90,0,-93,
-73,-103,-73,-79,-61,-399,-350,-409,-343,-384,-377,-440,-441,-448,-433,-425,
-422,-446,-446,-443,-446,-442,-439,-421,-415,-635,-624,-606,-432,-415,-392,
-1163,-1193,-1085,-1046,-1520,-889]} 1. d4 {[%emt 0:00:03]} Nf6 {[%emt 0:00:06]
} 2. c4 {[%emt 0:00:06]} g6 {[%emt 0:00:05]} 3. g3 {[%emt 0:00:03]} Bg7 {
[%emt 0:00:06]} 4. Bg2 {[%emt 0:00:01]} O-O {[%emt 0:00:12]} 5. Nf3 {[%emt 0:
00:00]} d6 {[%emt 0:00:38]} 6. O-O {[%emt 0:00:06]} Nbd7 {[%emt 0:00:04]} 7.
Qc2 {[%emt 0:00:30]} e5 {[%emt 0:01:13]} 8. dxe5 {[%emt 0:00:05]} Nxe5 {
[%emt 0:08:22] E60: King's Indian: Unusual lines and Fianchetto Variation
without Nc3.} 9. Nbd2 {[%emt 0:06:11] [#]} (9. Nxe5 $11 dxe5 10. b3) 9... Qe7
$146 {[%emt 0:04:04]} ({Predecessor:} 9... c6 10. Nxe5 dxe5 11. b3 e4 12. e3
Nh5 13. Bb2 f5 14. Rad1 Qc7 15. Bxg7 Nxg7 16. c5 b5 {½-½ (32) Aloe,G (1602)
-Carli,F (1641) Milan 2015}) 10. Nd4 {[%emt 0:02:56]} Re8 {[%emt 0:05:43]
Black has an edge.} 11. e3 {[%emt 0:07:39]} a6 {[%emt 0:05:59]} 12. Ne2 {
[%emt 0:15:46]} (12. b4 $11) 12... Rb8 {[%emt 0:10:11]} 13. Nf4 {[%emt 0:03:16]
} c5 {[%emt 0:01:57]} 14. Rb1 {[%emt 0:18:25]} b5 {[%emt 0:10:00]} (14... Nc6
$15) 15. b3 $1 $11 {[%emt 0:00:29]} Bf5 {[%emt 0:18:42]} 16. e4 {[%emt 0:00:11]
} Bd7 {[%emt 0:00:36]} 17. Bb2 {[%emt 0:02:48]} Nc6 {[%emt 0:04:45]} 18. Rbd1 {
[%emt 0:06:41]} Bg4 {[%emt 0:08:11]} 19. Rde1 {[%emt 0:02:07]} Nd4 {[%emt 0:00:
00]} 20. Bxd4 {[%emt 0:04:31]} cxd4 {[%emt 0:00:01]} 21. h3 {[%emt 0:00:18]}
Bc8 {[%emt 0:00:56]} 22. Rd1 {[%emt 0:06:01]} Qa7 {[%emt 0:01:44]} 23. Rfe1 {
[%emt 0:02:47]} Bb7 {[%emt 0:03:19]} 24. Nd3 {[%emt 0:05:24]} Nd7 {[%emt 0:00:
00]} 25. Kh2 {[%emt 0:01:02]} Rbc8 {[%emt 0:01:12]} 26. Qb1 {[%emt 0:00:10]}
Qb6 {[%emt 0:03:37]} 27. Rc1 {[%emt 0:02:26]} h5 {[%emt 0:01:55][%cal Yh5h4]}
28. h4 {[%emt 0:00:19]} Rc7 {[%emt 0:02:15]} 29. Re2 {[%emt 0:05:15]} Nf6 {
[%emt 0:00:40]} 30. f3 {[%emt 0:02:16]} Bh6 {[%emt 0:00:01]} 31. Nf4 {[%emt 0:
00:00]} (31. Rce1 $15) 31... Nd7 {[%emt 0:01:30][%cal Yd6d5]} 32. Ree1 {
[%emt 0:04:39]} Ne5 {[%emt 0:00:33]} 33. Rcd1 {[%emt 0:01:02]} Ba8 {[%emt 0:00:
00]} (33... bxc4 34. Nxc4 Nxc4 35. bxc4 $11) 34. Bf1 {[%emt 0:00:18]} Qa5 {
[%emt 0:00:38]} 35. Kg2 {[%emt 0:01:11]} Qb6 {[%emt 0:00:44] Black is more
active.} (35... Rec8 $17) 36. Bd3 {[%emt 0:01:39]} (36. Kh2 $1 $11) 36... Rce7
{[%emt 0:00:28]} 37. Re2 {[%emt 0:00:34]} Qd8 {[%emt 0:00:26]} 38. cxb5 {
[%emt 0:00:23] [#]} Rc7 $1 {[%emt 0:00:15]} 39. Nh3 $2 {[%emt 0:00:30] Loses
the game.} (39. Nc4 $15) 39... Rc3 $19 {[%emt 0:00:19]} 40. Nf1 {[%emt 0:00:38]
} Qf6 {[%emt 0:00:30]} 41. Nh2 {[%emt 0:03:34]} Rec8 {[%emt 0:00:00]} ({And not
} 41... Rxd3 42. Rxd3 Nxd3 43. Qxd3 $11) 42. f4 {[%emt 0:05:00]} ({Much weaker
is} 42. bxa6 Rc1 43. f4 (43. Rxc1 $2 Rxc1 44. Qxc1 Bxc1 $19) 43... Rxb1 44.
Bxb1 Ng4 45. Nxg4 hxg4) 42... Nxd3 {[%emt 0:01:08]} 43. Rxd3 {[%emt 0:00:09]}
Rxd3 {[%emt 0:00:07]} 44. Qxd3 {[%emt 0:00:37]} Rc3 {[%emt 0:00:00]} 45. Qd1 {
[%emt 0:03:37] [#]} d3 $1 {[%emt 0:01:15] Deflection} 46. Rd2 {[%emt 0:03:09]}
Bxe4+ {[%emt 0:01:36]} 47. Nf3 {[%emt 0:00:01]} axb5 {[%emt 0:10:17]} 48. Nf2 {
[%emt 0:00:48]} d5 {[%emt 0:01:15]} 49. Nxd3 {[%emt 0:00:00]} (49. Rxd3 $142
Bxd3 50. Nxd3) 49... Qf5 {[%emt 0:01:26][%cal Re4d3]} 50. Nde1 {[%emt 0:02:43]}
Qg4 {[%emt 0:00:55]} 51. Kf2 {[%emt 0:00:41]} Bf8 {[%emt 0:02:53][%cal Yh6f8,
Yf8c5,Yc5e3] aiming for ...Bc5+.} 52. Nd3 {[%emt 0:00:19]} (52. Rxd5 Bxd5 53.
Qxd5) 52... Bc5+ {[%emt 0:00:55] Black is clearly winning.} 53. Kg2 {[%emt 0:
00:54]} Be3 {[%emt 0:03:01][%cal Ye3f4] ( -> ...Bxf4!). This bishop pair is
nice.} 54. Nde5 {[%emt 0:00:25]} Bxf3+ {[%emt 0:01:35] Weighted Error Value:
White=0.54/Black=0.17 (very precise)} 0-1

[Event "44th Chess Olympiad Open 2022"]
[Site "Chennai"]
[Date "2022.08.01"]
[Round "4.43"]
[White "Kiik, Kalle"]
[Black "Yan, Austin K"]
[Result "1-0"]
[WhiteElo "2365"]
[BlackElo "1568"]
[Annotator "TA"]
[PlyCount "59"]
[EventDate "2022.??.??"]
[TimeControl "60"]

{[%evp 9,59,6,6,0,2,4,6,0,9,0,8,0,0,-15,11,19,9,6,39,-17,8,0,68,0,0,0,32,26,79,
30,47,9,43,48,106,33,115,81,157,158,258,291,278,283,283,268,268,285,1090,1087,
29998,29999]} 1. c4 {[%emt 0:00:17]} c6 {[%emt 0:00:15]} 2. Nf3 {[%emt 0:01:14]
} Nf6 {[%emt 0:00:04]} 3. b3 {[%emt 0:02:10]} d5 {[%emt 0:02:25]} 4. e3 {
[%emt 0:00:19]} Bf5 {[%emt 0:01:00]} 5. Nh4 {[%emt 0:06:02]} Bg4 {[%emt 0:00:
00]} 6. Be2 {[%emt 0:06:43] A12: English Opening: 1...c6 with b3 by White.}
Bxe2 {[%emt 0:04:18]} 7. Qxe2 {[%emt 0:00:08]} e6 {[%emt 0:00:03]} 8. O-O {
[%emt 0:01:40] The position is equal.} Nbd7 {[%emt 0:01:21]} 9. Bb2 {[%emt 0:
00:00]} Bd6 {[%emt 0:02:24]} 10. d3 {[%emt 0:04:43]} O-O {[%emt 0:00:47]} 11.
Nd2 {[%emt 0:03:28] [#]} Be5 $146 {[%emt 0:18:07]} ({Predecessor:} 11... Re8
12. e4 dxe4 13. dxe4 Be5 14. Bxe5 Nxe5 15. Nhf3 Qd3 16. Rfe1 Rad8 17. Nxe5 Qxd2
{½-½ (66) Sankalp,G (2504)-Suleymanli,A (2525) Chess.com INT 2022}) 12. d4 {
[%emt 0:04:30]} Bc7 {[%emt 0:01:54]} 13. g3 {[%emt 0:04:23]} e5 {[%emt 0:05:12]
} 14. Rad1 {[%emt 0:09:17]} (14. cxd5 $14 cxd5 15. dxe5 Bxe5 16. Ndf3 Bxb2 17.
Qxb2) 14... exd4 {[%emt 0:18:17]} 15. Bxd4 {[%emt 0:00:29]} (15. cxd5 {is more
complex.} Nxd5 16. Bxd4 g6 17. e4) 15... Be5 {[%emt 0:00:15]} (15... g6 $11)
16. Ndf3 {[%emt 0:05:57]} (16. Bxe5 $14 Nxe5 17. e4) 16... Bxd4 $11 {[%emt 0:
00:00]} 17. Rxd4 {[%emt 0:03:29]} Qc7 {[%emt 0:05:10]} 18. cxd5 {[%emt 0:06:40]
} Nxd5 {[%emt 0:00:22]} (18... cxd5 $11 19. Ng2 Qd6) 19. Rc1 {[%emt 0:02:25]} (
19. e4 $16 Ne7 20. Rfd1) 19... N5f6 {[%emt 0:03:58]} 20. Rcd1 {[%emt 0:03:12]}
Ne5 {[%emt 0:08:22]} 21. Nf5 {[%emt 0:04:23] Strongly threatening Rd6.} Nd5 {
[%emt 0:11:11] [#]} ({Better is} 21... Rae8 $14) 22. Ng5 {[%emt 0:03:48]} (22.
Nxe5 $1 $16 Qxe5 23. Qd3) 22... g6 {[%emt 0:06:00]} (22... h6 $14 23. Qc2 hxg5
24. Rxd5 g4) 23. Nh6+ $16 {[%emt 0:06:02]} Kg7 {[%emt 0:00:35]} ({Black should
try} 23... Kh8) 24. Nhxf7 $1 {[%emt 0:02:01] White is more active.} Qe7 {
[%emt 0:00:55] Inhibits Ne6+.} (24... Nc3 $2 25. Qc2 Nf3+ 26. Kh1 Nxd1 27. Ne6+
(27. Rxd1 Qe7 $15) 27... Kxf7 28. Nxc7 Nxd4 29. Qxd1 $18) (24... Rae8 $16) 25.
Nxe5 $18 {[%emt 0:01:17]} Qxe5 {[%emt 0:00:28]} 26. f4 {[%emt 0:06:37]} Qxe3+ {
[%emt 0:02:34]} 27. Qxe3 {[%emt 0:00:07]} Nxe3 {[%emt 0:00:01]} 28. Rd7+ {
[%emt 0:00:15]} Kf6 $2 {[%emt 0:01:22] [#]} (28... Kg8) 29. Re1 {[%emt 0:01:40]
} Nc2 {[%emt 0:01:33]} 30. Re5 {[%emt 0:00:25] Weighted Error Value: White=0.
17 (very precise) /Black=0.63} 1-0

[Event "44th Chess Olympiad Open 2022"]
[Site "Chennai"]
[Date "2022.08.01"]
[Round "4.43"]
[White "Liu, Yeh Yang"]
[Black "Chukavin, Kirill"]
[Result "1-0"]
[WhiteElo "1994"]
[BlackElo "2418"]
[Annotator "TA"]
[PlyCount "91"]
[EventDate "2022.??.??"]
[TimeControl "60"]

{[%evp 9,91,30,44,0,0,0,3,0,33,0,0,-28,-7,-31,-36,-33,-30,-11,-12,-47,-35,-50,
-52,-36,-47,-27,5,0,32,10,6,6,10,13,11,-129,-126,-183,-182,-162,0,0,73,74,79,
67,68,68,195,198,153,217,212,217,209,198,205,208,185,115,203,222,265,214,472,
466,512,484,483,443,511,500,486,486,581,574,460,480,937,919,869,862,987,927]} 
1. e4 {[%emt 0:00:02]} c5 {[%emt 0:00:23]} 2. Nf3 {[%emt 0:00:04]} a6 {[%emt 0:
00:00]} 3. c3 {[%emt 0:00:26][%cal Yc2c3,Yc3c4]} d5 {[%emt 0:00:21]} 4. exd5 {
[%emt 0:00:54]} Qxd5 {[%emt 0:00:11]} 5. d4 {[%emt 0:00:06]} Nf6 {[%emt 0:00:
57]} 6. c4 {[%emt 0:01:34] B28: Sicilian: 2 Nf3 a6 (O'Kelly Variation).} Qe4+ {
[%emt 0:07:21]} 7. Be3 {[%emt 0:01:25] Strongly threatening Nc3.} cxd4 {
[%emt 0:08:44]} 8. Nbd2 {[%emt 0:00:06] [#] Deflection. The position is equal.}
Qc6 $146 {[%emt 0:02:22]} (8... Qg6 $5 {[%cal Rd4e3]} 9. Nxd4 (9. Bxd4 Nc6 $11)
9... Ng4 $11) ({Predecessor:} 8... Qg4 9. h3 Qh5 10. Nxd4 Qxd1+ 11. Rxd1 e5 12.
N4b3 Nc6 13. g4 Nd4 14. Nxd4 exd4 15. Bxd4 {1-0 (64) Ondrus,M (2274)-Marcziter,
D (2243) Chess.com INT 2020}) 9. Nxd4 {[%emt 0:00:37]} Qc7 {[%emt 0:00:49]} 10.
Be2 {[%emt 0:09:48]} e5 {[%emt 0:01:11]} 11. Nc2 {[%emt 0:00:31]} Nc6 {[%emt 0:
02:51]} 12. O-O {[%emt 0:00:15]} Be6 {[%emt 0:00:00]} 13. a3 {[%emt 0:00:26]}
Be7 {[%emt 0:04:45]} 14. b4 {[%emt 0:00:52]} (14. Nb4 $5) 14... Rd8 {[%emt 0:
01:15]} 15. Qc1 {[%emt 0:02:36]} O-O {[%emt 0:06:16]} 16. Qb2 {[%emt 0:00:22]}
e4 {[%emt 0:16:30]} 17. h3 {[%emt 0:05:30]} Ne5 {[%emt 0:09:18]} 18. Nd4 $1 {
[%emt 0:12:45]} Bxc4 {[%emt 0:06:28]} 19. Rfc1 {[%emt 0:00:06][%cal Re2c4]} (
19. Rac1 $5 {[%cal Re2c4]} b5 20. a4 $11) 19... b5 $132 {[%emt 0:00:31] Black
puts up resistance} 20. Nf5 {[%emt 0:00:00]} Rfe8 {[%emt 0:06:37]} 21. Nxc4 {
[%emt 0:09:26]} bxc4 {[%emt 0:02:41] [#]} 22. Bd4 {[%emt 0:01:27]} (22. Bxc4 $1
$11 {keeps the balance.} Nxc4 23. Nxe7+ Rxe7 24. Qa2) 22... Nd3 $17 {[%emt 0:
00:57]} 23. Bxd3 {[%emt 0:00:32]} (23. Qc3 $17 {only move.}) 23... exd3 $19 {
[%emt 0:00:06]} 24. Ne3 {[%emt 0:01:36]} Nh5 $2 {[%emt 0:05:49]} (24... Ne4 $19
25. Rxc4 Qf4) 25. Rxc4 $11 {[%emt 0:01:06]} Qd7 {[%emt 0:00:23]} (25... Qd6 $11
) 26. Rd1 $16 {[%emt 0:04:44]} Bf6 {[%emt 0:00:00][%cal Rf6d4]} 27. Rxd3 {
[%emt 0:03:02]} Nf4 {[%emt 0:01:09]} 28. Rd1 {[%emt 0:01:55]} Bxd4 {[%emt 0:04:
41]} ({Black should play} 28... Qb5 $14 29. a4 Qg5) 29. Rcxd4 $18 {[%emt 0:00:
01]} ({Much less strong is} 29. Rdxd4 $6 Qxd4 30. Rxd4 Rxd4 $16) 29... Qxd4 {
[%emt 0:00:14]} 30. Rxd4 {[%emt 0:00:02]} Rxd4 {[%emt 0:00:10] [#]} 31. Nf5 $1
{[%emt 0:00:12]} ({Don't do} 31. b5 $6 axb5 32. Nf5 Rd1+ 33. Kh2 Ne6 $14) 31...
Rd1+ {[%emt 0:00:48]} 32. Kh2 {[%emt 0:00:01][%csl Gf5][%cal Rb2g7]} Ne6 {
[%emt 0:00:43]} 33. Qe2 {[%emt 0:01:22] Prevents Rd3.} Rd5 {[%emt 0:00:26]} 34.
g4 {[%emt 0:00:22]} (34. Qf3 $18 Rd2 35. Qc6) 34... a5 {[%emt 0:03:16]} (34...
h5 $16) 35. b5 {[%emt 0:01:39]} Rdd8 {[%emt 0:00:00]} 36. Qe5 {[%emt 0:02:04]
Against Nd4. Black must now prevent b6.} f6 $2 {[%emt 0:00:34]} (36... Rd3 37.
Qb2 a4) 37. Qc3 {[%emt 0:00:02] White is clearly winning.} a4 {[%emt 0:00:36]}
38. Qc4 {[%emt 0:00:17]} g6 {[%emt 0:00:00]} 39. Ne3 {[%emt 0:01:49]} Rd4 {
[%emt 0:00:39]} 40. Qc6 {[%emt 0:00:42]} Kf7 {[%emt 0:00:32]} 41. Nc4 {[%emt 0:
31:55]} Rb8 {[%emt 0:24:48]} 42. b6 {[%emt 0:00:00][%cal Yb5b6,Yb6b7]} Ke7 {
[%emt 0:03:06]} 43. Qxa4 {[%emt 0:00:00] And now Qa7+ would win.} Nd8 {[%emt 0:
01:09]} (43... Rc8 $142 44. Qb4+ Rc5) 44. Qa7+ {[%emt 0:00:00]} Rb7 {[%emt 0:
00:06] [#]} 45. Na5 $1 {[%emt 0:00:00]} Rbd7 {[%emt 0:01:51]} (45... Rxa7 46.
bxa7) 46. b7 {[%emt 0:00:00] Quite a comeback for White. Weighted Error Value:
White=0.17 (very precise) /Black=0.34} 1-0